bitfinex/quotes_SOLUSD_20250414
["timestamp","ask_amount","ask_price","bid_price","bid_amount"]
[1744656066352,7.75,129.77,129.74,16.60335971]
[1744656066524,16.60335971,129.79,129.75,16.60335971]
[1744656067424,16.60335971,129.78,129.74,16.60335971]
[1744656067726,16.60335971,129.78,129.73,16.60335971]
[1744656067914,16.60335971,129.77,129.72,43.58445971]
[1744656068447,16.60335971,129.77,129.73,16.60335971]
[1744656069345,16.60335971,129.79,129.74,16.60335971]
[1744656069549,92.023,129.8,129.72,19.2722]
[1744656069550,80.863,129.8,129.76,16.60335971]
[1744656069733,0.063,129.8,129.76,16.60335971]
[1744656070322,16.60335971,129.78,129.74,16.60335971]
[1744656070528,16.60335971,129.78,129.75,7.7071]
[1744656071349,16.60335971,129.77,129.74,7.7074]
[1744656072649,16.60335971,129.79,129.74,24.31075971]
[1744656072823,16.60335971,129.79,129.75,16.60335971]
[1744656073223,0.063,129.8,129.76,16.60335971]
[1744656073430,16.60335971,129.79,129.75,16.60335971]
[1744656073831,16.60335971,129.79,129.74,43.58005971]
[1744656074034,16.60335971,129.78,129.74,43.58005971]
[1744656074351,16.60335971,129.78,129.74,7.7074]
[1744656074648,16.60335971,129.77,129.74,7.7074]
[1744656075036,0.063,129.8,129.73,7.708]
[1744656075037,16.60335971,129.76,129.73,7.708]
[1744656075436,16.60335971,129.77,129.73,7.708]
[1744656077830,16.60335971,129.76,129.73,7.708]
[1744656080257,16.60335971,129.76,129.72,7.7089]
[1744656081668,16.60335971,129.75,129.72,7.7089]
[1744656081964,16.60335971,129.74,129.71,7.7093]
[1744656083037,16.60335971,129.74,129.7,7.7401]
[1744656083363,16.60335971,129.75,129.7,24.34345971]
[1744656083552,7.7056,129.78,129.71,16.60335971]
[1744656083755,16.60335971,129.77,129.72,16.60335971]
[1744656084567,16.60335971,129.75,129.71,16.60335971]
[1744656085065,16.60335971,129.75,129.72,7.7089]
[1744656085238,16.60335971,129.76,129.72,7.7089]
[1744656085444,7.7055,129.78,129.72,24.31225971]
[1744656085636,0.063,129.8,129.77,16.60335971]
[1744656085947,0.063,129.8,129.76,26.0]
[1744656086147,0.063,129.8,129.78,16.60335971]
[1744656086447,0.063,129.8,129.77,16.60335971]
[1744656086658,0.063,129.8,129.76,16.60335971]
[1744656087032,0.063,129.8,129.77,7.7059]
[1744656087858,16.66635971,129.8,129.77,7.7059]
[1744656088257,16.60335971,129.79,129.77,7.7059]
[1744656089153,0.063,129.8,129.76,7.7065]
[1744656089355,16.66635971,129.8,129.76,24.30985971]
[1744656089565,16.66635971,129.8,129.76,7.7065]
[1744656089930,16.60335971,129.79,129.76,7.7065]
[1744656091153,16.66635971,129.8,129.76,7.7065]
[1744656093956,16.60335971,129.77,129.72,7.7089]
[1744656094137,16.60335971,129.75,129.72,7.7089]
[1744656094338,16.60335971,129.74,129.72,7.7089]
[1744656095263,19.3783,129.79,129.72,24.31225971]
[1744656095444,16.60335971,129.77,129.73,16.60335971]
[1744656096149,16.60335971,129.78,129.74,7.7077]
[1744656096860,16.60335971,129.78,129.74,24.31105971]
[1744656097361,16.60335971,129.78,129.74,7.7077]
[1744656098053,16.60335971,129.78,129.74,24.31105971]
[1744656098254,16.60335971,129.78,129.74,16.60335971]
[1744656098456,16.60335971,129.79,129.74,16.60335971]
[1744656099044,80.863,129.8,129.74,16.60335971]
[1744656099259,16.60335971,129.79,129.74,16.60335971]
[1744656099941,16.60335971,129.78,129.74,16.60335971]
[1744656101164,16.60335971,129.79,129.75,7.7071]
[1744656101673,0.063,129.8,129.76,1.5981]
[1744656101876,0.063,129.8,129.77,16.60335971]
[1744656102359,0.063,129.8,129.78,16.60335971]
[1744656102542,0.063,129.8,129.76,1.5981]
[1744656102944,0.063,129.8,129.78,16.60335971]
[1744656103269,0.063,129.8,129.79,7.7047]
[1744656104076,0.063,129.8,129.78,7.705]
[1744656104369,0.063,129.8,129.78,24.30835971]
[1744656106648,0.063,129.8,129.79,16.60335971]
[1744656107661,0.063,129.8,129.79,24.30805971]
[1744656108474,0.063,129.8,129.79,7.7047]
[1744656109848,0.063,129.8,129.79,24.30805971]
[1744656114464,0.063,129.8,129.77,7.7059]
[1744656114778,16.60335971,129.78,129.76,7.7062]
[1744656114974,16.60335971,129.77,129.74,7.7074]
[1744656115190,16.60335971,129.75,129.72,7.7386]
[1744656115382,16.60335971,129.73,129.72,7.7386]
[1744656115563,16.60335971,129.73,129.72,0.03]
[1744656115765,16.60335971,129.78,129.72,0.03]
[1744656116073,24.30885971,129.78,129.72,0.03]
[1744656116257,16.60335971,129.75,129.72,0.03]
[1744656119579,16.60335971,129.74,129.72,0.03]
[1744656120681,7.7059,129.77,129.72,0.03]
[1744656120682,16.60335971,129.73,129.72,0.03]
[1744656121059,16.60335971,129.74,129.72,0.03]
[1744656124982,7.7053,129.78,129.72,0.03]
[1744656125185,16.60335971,129.76,129.72,0.03]
[1744656125364,16.60335971,129.75,129.72,0.03]
[1744656126164,16.60335971,129.73,129.72,0.03]
[1744656127983,35.39517014,129.73,129.72,0.03]
[1744656129277,60.13331456,129.73,129.72,0.03]
[1744656129781,43.10347014,129.73,129.72,0.03]
[1744656130883,7.7079,129.74,129.72,0.03]
[1744656131193,16.60335971,129.73,129.72,0.03]
[1744656132077,108.98335971,129.75,129.72,0.03]
[1744656132485,16.60335971,129.74,129.72,0.03]
[1744656132681,108.98335971,129.75,129.72,0.03]
[1744656132868,92.38,129.75,129.72,0.03]
[1744656133067,97.40335971,129.75,129.72,0.03]
[1744656133285,16.60335971,129.74,129.72,0.03]
[1744656134593,97.40335971,129.75,129.72,0.03]
[1744656135397,16.60335971,129.75,129.72,0.03]
[1744656135692,16.60335971,129.76,129.72,16.63335971]
[1744656136074,16.60335971,129.76,129.72,0.03]
[1744656136763,16.60335971,129.76,129.72,7.7389]
[1744656137594,16.60335971,129.75,129.72,7.7389]
[1744656138166,16.60335971,129.76,129.72,7.7389]
[1744656139573,16.60335971,129.75,129.72,7.7389]
[1744656140794,16.60335971,129.73,129.72,0.03]
[1744656140998,60.15101456,129.73,129.72,0.03]
[1744656141203,26.42648471,129.71,129.7,0.03]
[1744656141403,50.73934442,129.71,129.7,0.03]
[1744656143498,69.10467014,129.71,129.7,0.03]
[1744656144799,69.53115485,129.71,129.7,0.03]
[1744656144981,35.39517014,129.69,129.68,0.03]
[1744656145383,16.60335971,129.69,129.68,0.03]
[1744656145889,24.31395971,129.69,129.68,0.03]
[1744656149400,43.10577014,129.69,129.68,0.03]
[1744656151884,16.60335971,129.69,129.68,0.03]
[1744656153387,24.31395971,129.69,129.68,0.03]
[1744656153789,26.35994886,129.7,129.68,0.03]
[1744656154003,16.60335971,129.69,129.68,0.03]
[1744656155505,24.31395971,129.69,129.68,0.03]
[1744656156793,16.60335971,129.69,129.68,0.03]
[1744656157809,16.60335971,129.7,129.68,0.03]
[1744656158017,16.60335971,129.69,129.68,0.03]
[1744656158415,16.60335971,129.7,129.68,0.03]
[1744656158743,16.60335971,129.71,129.68,0.03]
[1744656159009,97.40335971,129.72,129.68,16.63335971]
[1744656159203,16.60335971,129.71,129.68,0.03]
[1744656159409,16.60335971,129.7,129.68,0.03]
[1744656160214,16.60335971,129.71,129.68,0.03]
[1744656160720,97.40335971,129.72,129.68,0.03]
[1744656164323,16.60335971,129.71,129.68,0.03]
[1744656165620,16.60335971,129.71,129.69,1.6047]
[1744656165915,0.063,129.77,129.7,16.60335971]
[1744656166097,16.60335971,129.74,129.69,8.2068]
[1744656166299,16.60335971,129.74,129.69,24.81015971]
[1744656166708,16.60335971,129.74,129.7,16.60335971]
[1744656167322,16.60335971,129.75,129.71,7.7095]
[1744656168815,16.60335971,129.74,129.71,7.7095]
[1744656169529,16.60335971,129.74,129.7,7.7101]
[1744656173025,16.60335971,129.75,129.71,16.60335971]
[1744656174007,16.60335971,129.74,129.7,43.58865971]
[1744656176240,16.60335971,129.75,129.7,43.58865971]
[1744656177944,16.60335971,129.76,129.71,16.60335971]
[1744656178135,28.04635971,129.77,129.72,16.60335971]
[1744656178336,16.60335971,129.76,129.72,16.60335971]
[1744656178555,16.60335971,129.76,129.71,16.60335971]
[1744656180255,16.60335971,129.76,129.72,7.7089]
[1744656180631,16.60335971,129.75,129.72,7.7089]
[1744656182066,26.063,129.77,129.72,7.7089]
[1744656182275,0.063,129.77,129.76,24.30985971]
[1744656182745,0.063,129.77,129.76,7.7065]
[1744656182948,16.66635971,129.77,129.72,16.60335971]
[1744656183268,16.60335971,129.76,129.72,24.31225971]
[1744656183433,16.66635971,129.77,129.73,16.60335971]
[1744656183841,0.063,129.77,129.73,16.60335971]
[1744656184039,0.063,129.77,129.74,16.60335971]
[1744656184259,0.063,129.77,129.76,24.30985971]
[1744656186255,0.063,129.77,129.76,32.01745971]
[1744656186760,0.0001,129.77,129.76,51.23575485]
[1744656188550,0.0001,129.77,129.76,67.83911456]
[1744656189160,0.063,129.8,129.79,26.0]
[1744656189465,0.063,129.8,129.79,42.60335971]
[1744656190574,0.063,129.8,129.79,50.30805971]
[1744656190865,0.0001,129.81,129.79,69.52635485]
[1744656191166,0.0001,129.81,129.8,16.60335971]
[1744656192772,0.0001,129.81,129.79,33.7047]
[1744656192947,0.0001,129.81,129.8,16.60335971]
[1744656193467,0.0001,129.81,129.79,7.7047]
[1744656194965,0.0001,129.81,129.79,24.30805971]
[1744656195169,0.0001,129.81,129.8,16.60335971]
[1744656196571,0.0001,129.81,129.8,7.7041]
[1744656196863,0.0001,129.81,129.8,24.30745971]
[1744656197068,0.0001,129.81,129.79,7.7044]
[1744656200882,0.0001,129.81,129.79,24.30775971]
[1744656204482,0.0001,129.81,129.8,16.60335971]
[1744656206155,0.0001,129.81,129.8,24.30745971]
[1744656217193,0.0001,129.81,129.8,18.3284042]
[1744656220472,0.0001,129.81,129.8,18.89705048]
[1744656220674,0.063,129.83,129.82,26.56864628]
[1744656220872,0.063,129.84,129.82,37.19295048]
[1744656221073,0.063,129.84,129.83,36.6243042]
[1744656222191,0.063,129.84,129.83,44.3266042]
[1744656223393,0.063,129.84,129.83,50.29214677]
[1744656224293,0.063,129.85,129.83,66.88199354]
[1744656224294,0.0001,129.85,129.83,66.88199354]
[1744656224592,0.0001,129.85,129.84,33.74833982]
[1744656224795,0.0001,129.85,129.83,33.7023]
[1744656225095,0.0001,129.85,129.84,16.58984677]
[1744656225295,0.0001,129.85,129.84,24.29154677]
[1744656230404,0.0001,129.85,129.84,40.88139354]
[1744656233107,0.0001,129.85,129.84,24.29154677]
[1744656233602,0.0001,129.85,129.84,41.45003982]
[1744656234098,0.0001,129.85,129.84,52.59003982]
[1744656237614,0.0001,129.85,129.84,35.43154677]
[1744656237910,0.0001,129.85,129.84,52.02139354]
[1744656238291,0.063,129.88,129.84,71.84443982]
[1744656238494,0.063,129.88,129.86,17.15849305]
[1744656238697,0.063,129.89,129.87,16.58984677]
[1744656239015,0.063,129.89,129.88,16.58984677]
[1744656239599,0.063,129.89,129.88,24.28924677]
[1744656241516,0.063,129.89,129.85,7.7011]
[1744656241693,0.063,129.89,129.86,16.58984677]
[1744656242805,0.063,129.89,129.85,43.54384677]
[1744656243107,0.063,129.89,129.86,16.58984677]
[1744656244506,0.063,129.89,129.87,7.7]
[1744656246014,0.063,129.89,129.87,18.31725858]
[1744656248851,0.063,129.89,129.88,10.61725858]
[1744656249520,0.063,129.89,129.87,18.31725858]
[1744656250535,0.063,129.89,129.85,19.2529]
[1744656250536,0.063,129.89,129.88,10.61725858]
[1744656250909,0.0001,129.89,129.88,11.18590486]
[1744656252942,0.0001,129.89,129.88,18.88530486]
[1744656255027,0.0001,129.89,129.88,22.74992023]
[1744656255225,0.0001,129.89,129.88,18.88530486]
[1744656256736,0.0001,129.89,129.88,7.6994]
[1744656257738,0.0001,129.89,129.87,7.7]
[1744656260045,0.0001,129.89,129.83,38.79592314]
[1744656260222,0.0001,129.89,129.86,10.61725858]
[1744656260428,0.0001,129.89,129.87,10.61725858]
[1744656261358,0.0001,129.89,129.88,10.61725858]
[1744656262460,0.0001,129.89,129.88,18.88530486]
[1744656263867,0.0001,129.89,129.88,18.31665858]
[1744656264439,0.0001,129.89,129.88,7.6994]
[1744656264645,0.0001,129.89,129.88,18.31665858]
[1744656265946,0.0001,129.89,129.88,7.6994]
[1744656271039,0.0001,129.89,129.88,18.31665858]
[1744656275743,0.0001,129.89,129.88,18.88530486]
[1744656275951,0.063,129.9,129.88,18.88530486]
[1744656275952,0.0001,129.9,129.89,0.56864628]
[1744656276136,0.0001,129.9,129.89,11.18590486]
[1744656278651,0.0001,129.9,129.89,7.6988]
[1744656279859,0.0001,129.9,129.88,7.6994]
[1744656280529,10.61735858,129.9,129.88,7.6994]
[1744656280944,0.0001,129.9,129.88,7.6994]
[1744656281150,10.61735858,129.9,129.87,7.6997]
[1744656281857,0.0001,129.9,129.87,7.6997]
[1744656282154,0.0001,129.9,129.87,18.31695858]
[1744656282657,0.0001,129.9,129.87,7.6997]
[1744656285864,16.58766305,129.9,129.87,7.6997]
[1744656288461,22.78596305,129.88,129.82,0.03]
[1744656288668,16.58756305,129.83,129.82,0.03]
[1744656288957,16.58756305,129.84,129.82,7.7329]
[1744656289366,16.58756305,129.85,129.82,7.7329]
[1744656289562,16.58756305,129.87,129.82,24.32046305]
[1744656289863,16.58756305,129.86,129.82,24.32046305]
[1744656290959,16.58756305,129.86,129.82,7.7329]
[1744656293668,16.58756305,129.87,129.82,24.32046305]
[1744656293967,22.78596305,129.88,129.83,16.58756305]
[1744656294277,16.58756305,129.87,129.83,16.58756305]
[1744656297772,16.58756305,129.86,129.82,0.03]
[1744656297968,16.58756305,129.85,129.82,0.03]
[1744656300470,16.58756305,129.84,129.82,0.03]
[1744656301472,16.58756305,129.85,129.82,0.03]
[1744656302675,16.58756305,129.84,129.82,0.03]
[1744656303891,16.58756305,129.87,129.82,16.61756305]
[1744656304359,98.96506305,129.89,129.85,16.58756305]
[1744656304552,16.58756305,129.88,129.82,0.03]
[1744656304752,16.58756305,129.85,129.82,0.03]
[1744656305371,10.6249592,129.85,129.82,0.03]
[1744656305875,10.6249592,129.84,129.82,0.03]
[1744656306062,10.6249592,129.83,129.82,0.03]
[1744656306261,6.3492,129.87,129.82,0.03]
[1744656306474,10.6249592,129.84,129.82,0.03]
[1744656306976,6.3492,129.87,129.82,0.03]
[1744656306977,10.6249592,129.85,129.82,0.03]
[1744656309772,10.6249592,129.84,129.82,0.03]
[1744656310672,10.6249592,129.83,129.82,0.03]
[1744656312274,18.3272592,129.83,129.82,0.03]
[1744656312578,24.5683592,129.83,129.82,0.03]
[1744656313347,54.92665434,129.83,129.82,0.03]
[1744656313651,46.71533357,129.79,129.78,0.03]
[1744656313882,38.2641592,129.79,129.78,0.03]
[1744656314261,45.9688592,129.79,129.78,0.03]
[1744656315080,65.04499277,129.79,129.78,0.03]
[1744656315370,94.41674602,129.79,129.78,0.03]
[1744656315671,41.9447,129.79,129.78,0.03]
[1744656315873,80.8,129.82,129.78,0.03]
[1744656316079,16.62687544,129.81,129.78,0.03]
[1744656318474,97.42687544,129.82,129.78,0.03]
[1744656318675,16.62687544,129.81,129.78,0.03]
[1744656318908,16.62687544,129.8,129.78,0.03]
[1744656319366,16.62687544,129.79,129.78,0.03]
[1744656319757,35.70300901,129.79,129.78,0.03]
[1744656320705,43.40770901,129.79,129.78,0.03]
[1744656320887,60.17674602,129.79,129.78,0.03]
[1744656321468,45.21829514,129.77,129.76,0.063]
[1744656321683,72.98517058,129.77,129.76,0.063]
[1744656322162,72.84300901,129.77,129.76,0.063]
[1744656322582,16.62687544,129.77,129.76,0.063]
[1744656322982,16.62687544,129.78,129.76,0.063]
[1744656324190,16.62687544,129.79,129.76,0.063]
[1744656324791,16.62687544,129.78,129.76,0.063]
[1744656325181,16.62687544,129.77,129.76,0.063]
[1744656328793,16.62687544,129.78,129.76,0.063]
[1744656331726,37.49334886,129.81,129.76,0.063]
[1744656331886,16.62687544,129.78,129.76,0.063]
[1744656332090,16.62687544,129.79,129.76,0.063]
[1744656332817,16.62687544,129.8,129.76,7.7695]
[1744656333182,16.62687544,129.79,129.76,7.7695]
[1744656334604,80.8,129.82,129.77,16.62687544]
[1744656334811,27.76687544,129.85,129.8,16.62687544]
[1744656335596,16.62687544,129.84,129.76,72.28682314]
[1744656335777,16.62687544,129.83,129.79,16.62687544]
[1744656336381,16.62687544,129.8,129.76,7.7695]
[1744656336614,16.62687544,129.78,129.76,7.7695]
[1744656337112,16.62687544,129.78,129.76,0.063]
[1744656337414,16.62687544,129.79,129.77,30.0]
[1744656338806,16.62687544,129.78,129.77,30.0]
[1744656339896,16.62687544,129.78,129.76,0.063]
[1744656340202,16.62687544,129.79,129.76,7.7694]
[1744656341212,16.62687544,129.79,129.76,0.063]
[1744656342618,99.44964886,129.82,129.76,0.063]
[1744656342913,97.42687544,129.82,129.77,16.62687544]
[1744656343108,42.3601,129.87,129.81,16.62687544]
[1744656343109,91.94,129.87,129.81,16.62687544]
[1744656343314,16.62687544,129.86,129.81,16.62687544]
[1744656343493,16.62687544,129.85,129.81,16.62687544]
[1744656343694,16.62687544,129.82,129.76,1.5887]
[1744656343923,16.62687544,129.82,129.77,16.62687544]
[1744656344116,16.62687544,129.83,129.78,46.62687544]
[1744656344911,16.62687544,129.83,129.79,7.7047]
[1744656345214,16.62687544,129.82,129.79,7.7047]
[1744656345815,16.62687544,129.81,129.78,30.0]
[1744656346815,16.62687544,129.83,129.78,24.33207544]
[1744656347394,7.7018,129.84,129.78,24.33207544]
[1744656347599,16.62687544,129.82,129.78,24.33207544]
[1744656348503,16.62687544,129.83,129.78,43.59537544]
[1744656350616,16.62687544,129.83,129.79,16.62687544]
[1744656350804,16.62687544,129.83,129.78,43.59537544]
[1744656351213,24.32957544,129.83,129.78,24.33207544]
[1744656351399,16.62687544,129.82,129.78,24.33207544]
[1744656351603,16.62687544,129.82,129.78,7.7052]
[1744656351914,16.62687544,129.82,129.78,24.33207544]
[1744656352112,16.62687544,129.81,129.78,7.7052]
[1744656352615,16.62687544,129.82,129.78,7.7052]
[1744656353215,16.62687544,129.81,129.78,7.7052]
[1744656353505,16.62687544,129.81,129.77,7.7056]
[1744656353820,16.62687544,129.78,129.76,0.063]
[1744656354019,26.0,129.8,129.77,30.0]
[1744656354317,0.28432314,129.8,129.76,0.063]
[1744656354519,18.79181043,129.77,129.76,0.063]
[1744656354695,19.07613357,129.77,129.76,0.063]
[1744656355223,43.40890901,129.77,129.76,0.063]
[1744656356619,16.62687544,129.77,129.76,0.063]
[1744656356918,97.42687544,129.78,129.76,0.063]
[1744656357119,16.62687544,129.77,129.76,0.063]
[1744656357520,97.42687544,129.78,129.76,0.063]
[1744656361024,16.62687544,129.77,129.76,0.063]
[1744656361525,35.70300901,129.77,129.76,0.063]
[1744656362528,43.40890901,129.77,129.76,0.063]
[1744656363505,35.70300901,129.77,129.76,0.063]
[1744656363700,97.42687544,129.78,129.76,0.063]
[1744656363907,80.8,129.78,129.76,0.063]
[1744656365439,16.62687544,129.82,129.78,7.7053]
[1744656365749,91.92,129.83,129.8,16.62687544]
[1744656365921,108.54687544,129.83,129.79,16.62687544]
[1744656366427,91.92,129.83,129.79,16.62687544]
[1744656367130,16.62687544,129.85,129.8,16.62687544]
[1744656367306,16.62687544,129.86,129.81,16.62687544]
[1744656367509,24.32747544,129.86,129.82,7.7029]
[1744656367709,16.62687544,129.84,129.81,7.7033]
[1744656368030,16.62687544,129.84,129.78,19.2633]
[1744656368031,16.62687544,129.83,129.79,24.33157544]
[1744656370141,16.62687544,129.84,129.79,24.33157544]
[1744656370632,91.983,129.87,129.82,16.62687544]
[1744656370813,108.60987544,129.87,129.83,16.62687544]
[1744656371335,108.60987544,129.87,129.84,7.7017]
[1744656371510,80.863,129.87,129.84,24.32857544]
[1744656371833,97.48987544,129.87,129.83,7.7021]
[1744656372216,97.48987544,129.87,129.83,24.32897544]
[1744656372536,80.863,129.87,129.83,24.32897544]
[1744656373404,80.863,129.87,129.83,43.58487544]
[1744656373623,0.063,129.87,129.84,16.62687544]
[1744656374928,0.063,129.87,129.85,16.62687544]
[1744656375125,0.063,129.87,129.86,16.62687544]
[1744656375510,0.063,129.87,129.86,24.32747544]
[1744656377210,0.063,129.87,129.86,7.7006]
[1744656378448,0.063,129.87,129.84,16.62687544]
[1744656379535,0.063,129.87,129.84,24.32857544]
[1744656379729,0.063,129.87,129.86,7.7006]
[1744656381741,0.063,129.87,129.85,7.7011]
[1744656382439,0.063,129.87,129.85,24.32797544]
[1744656384244,0.063,129.87,129.86,16.62687544]
[1744656386449,0.063,129.87,129.86,24.32747544]
[1744656386820,0.063,129.88,129.86,24.32747544]
[1744656387137,0.0001,129.88,129.87,18.24447544]
[1744656388544,0.0001,129.88,129.87,25.94447544]
[1744656390446,0.0001,129.88,129.87,9.3176]
[1744656390627,0.0001,129.88,129.87,25.94447544]
[1744656392242,0.0001,129.88,129.84,7.7017]
[1744656392430,0.0001,129.88,129.84,24.32857544]
[1744656393026,0.0001,129.88,129.84,43.58297544]
[1744656393345,16.62697544,129.88,129.84,24.32857544]
[1744656393752,16.62687544,129.87,129.83,24.32897544]
[1744656394042,16.62687544,129.87,129.81,11.12]
[1744656394043,16.62687544,129.85,129.82,7.7027]
[1744656394241,16.62687544,129.84,129.8,16.62687544]
[1744656394446,16.62687544,129.82,129.78,7.7053]
[1744656394632,16.62687544,129.82,129.78,24.33217544]
[1744656394828,16.62687544,129.83,129.79,16.62687544]
[1744656395044,16.62687544,129.84,129.8,16.62687544]
[1744656395257,16.62687544,129.84,129.79,16.62687544]
[1744656395545,16.62687544,129.83,129.79,16.62687544]
[1744656396250,16.62687544,129.83,129.8,7.7041]
[1744656396543,16.62687544,129.81,129.77,7.7059]
[1744656396842,16.62687544,129.8,129.77,7.7059]
[1744656397343,16.62687544,129.82,129.77,24.33277544]
[1744656398857,16.62687544,129.81,129.77,24.33277544]
[1744656399052,7.7025,129.83,129.76,19.3292]
[1744656399053,16.62687544,129.8,129.76,7.7692]
[1744656399235,16.62687544,129.81,129.77,16.62687544]
[1744656399433,16.62687544,129.82,129.77,16.62687544]
[1744656401054,16.62687544,129.82,129.78,7.7053]
[1744656401437,16.62687544,129.81,129.77,7.7057]
[1744656401948,16.62687544,129.78,129.76,0.063]
[1744656403148,16.62687544,129.77,129.76,0.063]
[1744656403651,16.62687544,129.78,129.76,0.063]
[1744656403830,16.62687544,129.79,129.76,0.063]
[1744656404028,88.7213,129.8,129.76,0.063]
[1744656404255,16.62687544,129.78,129.76,0.063]
[1744656407746,35.41868587,129.77,129.76,0.063]
[1744656407945,35.70300901,129.77,129.76,0.063]
[1744656408147,16.62687544,129.77,129.76,0.063]
[1744656408353,35.70300901,129.77,129.76,0.063]
[1744656409651,43.40890901,129.77,129.76,0.063]
[1744656414534,16.62687544,129.77,129.76,0.063]
[1744656414953,24.33277544,129.77,129.76,0.063]
[1744656415649,43.55107058,129.77,129.76,0.063]
[1744656415850,19.07613357,129.76,129.75,0.03]
[1744656416159,35.70300901,129.76,129.75,0.03]
[1744656416359,43.40950901,129.76,129.75,0.03]
[1744656421571,43.55167058,129.76,129.75,0.03]
[1744656424853,27.05853357,129.75,129.74,0.03]
[1744656425061,66.93757058,129.75,129.74,0.03]
[1744656425274,75.58204602,129.74,129.72,0.03]
[1744656425448,63.59204602,129.73,129.72,0.03]
[1744656425965,46.82300901,129.73,129.72,0.03]
[1744656426359,127.76517058,129.73,129.72,0.03]
[1744656426768,135.33130901,129.73,129.72,0.03]
[1744656428173,91.92,129.73,129.72,0.03]
[1744656428372,135.18914744,129.73,129.72,0.03]
[1744656428674,135.33130901,129.73,129.72,0.03]
[1744656430466,108.54687544,129.73,129.72,0.03]
[1744656431171,135.33130901,129.73,129.72,0.03]
[1744656431886,108.54687544,129.73,129.72,0.03]
[1744656432186,135.33130901,129.73,129.72,0.03]
[1744656433565,54.67347058,129.73,129.72,0.03]
[1744656434160,71.30034602,129.73,129.72,0.03]
[1744656434476,78.98364602,129.73,129.72,0.03]
[1744656434780,62.35677058,129.73,129.72,0.03]
[1744656435080,78.98364602,129.73,129.72,0.03]
[1744656437677,62.35677058,129.73,129.72,0.03]
[1744656437890,78.98364602,129.73,129.72,0.03]
[1744656438262,62.35677058,129.73,129.72,0.03]
[1744656440663,54.53130901,129.73,129.72,0.03]
[1744656440869,54.24698587,129.73,129.72,0.03]
[1744656441073,54.38914744,129.73,129.72,0.03]
[1744656441387,54.53130901,129.73,129.72,0.03]
[1744656442483,54.67347058,129.73,129.72,0.03]
[1744656445164,71.30034602,129.73,129.72,0.03]
[1744656445365,54.67347058,129.73,129.72,0.03]
[1744656445978,46.82300901,129.73,129.72,0.03]
[1744656446182,54.53130901,129.73,129.72,0.03]
[1744656446573,54.67347058,129.73,129.72,0.03]
[1744656447684,71.30034602,129.73,129.72,0.03]
[1744656451498,61.15659514,129.73,129.72,0.03]
[1744656451682,94.41034602,129.73,129.72,0.03]
[1744656452192,45.07613357,129.71,129.7,0.03]
[1744656452489,61.70300901,129.71,129.7,0.03]
[1744656453195,55.87286196,129.71,129.7,0.03]
[1744656454193,63.58236196,129.71,129.7,0.03]
[1744656454397,63.29803882,129.71,129.7,0.03]
[1744656454599,63.58236196,129.71,129.7,0.03]
[1744656454896,50.56449514,129.7,129.68,0.03]
[1744656455077,19.21829514,129.68,129.67,0.03]
[1744656455276,83.61112924,129.68,129.67,0.03]
[1744656455880,40.99286196,129.68,129.67,0.03]
[1744656456191,48.70406196,129.68,129.67,0.03]
[1744656456380,48.70406196,129.68,129.67,0.0001]
[1744656456580,19.21829514,129.67,129.66,0.03]
[1744656456785,72.49112924,129.67,129.66,0.03]
[1744656457206,52.40162727,129.66,129.65,0.03]
[1744656458287,64.16512552,129.66,129.65,0.03]
[1744656458603,60.11402727,129.66,129.63,0.03]
[1744656458787,116.53888042,129.65,129.63,0.03]
[1744656459601,124.25188042,129.65,129.63,0.03]
[1744656460690,124.39404199,129.65,129.63,0.03]
[1744656463199,43.59404199,129.65,129.63,0.03]
[1744656463503,19.21829514,129.64,129.63,0.03]
[1744656463691,35.88104199,129.64,129.63,0.03]
[1744656465183,43.59464199,129.64,129.63,0.03]
[1744656469110,35.73888042,129.64,129.63,0.03]
[1744656469402,54.57248042,129.64,129.63,0.03]